{"text_format":"3","workbook":"xlsx","n_sheets":2,"sheets":["Inventario de equipamiento","Configuración"],"not_rendered":{"defined_names":4},"read":"whole","date_system":"1900"}

{"sheet":"Inventario de equipamiento","index":0,"n_rows":35,"n_cols":6,"rows_kept":35,"merged":[[0,1,2,2],[0,4,0,5]]}
[]
[{"$nulls":4},"Resaltar los artículos más viejos que:"]
[{"$nulls":4},4]
[]
[null,"IDENTIFICADOR DE EQUIPAMIENTO","NOMBRE DEL ARTÍCULO","ASIGNADO A","FECHA DE PUBLICACIÓN","ANTIGÜEDAD DEL ARTÍCULO"]
[null,"ARTÍCULO0001","silla","Empleado 1",{"$f":"TODAY()-25","v":"2012-10-27"},{"$f":"IF(tblInventarioEquipamiento[[#This Row],[FECHA DE PUBLICACIÓN]]<>\"\",TODAY()-tblInventarioEquipamiento[[#This Row],[FECHA DE PUBLICACIÓN]],\"\")","v":{"v":25,"d":"25 Días"}}]
[null,"ARTÍCULO0002","impresora láser","Empleado 2",{"$f":"TODAY()-479","v":"2011-07-31"},{"$f":"IF(tblInventarioEquipamiento[[#This Row],[FECHA DE PUBLICACIÓN]]<>\"\",TODAY()-tblInventarioEquipamiento[[#This Row],[FECHA DE PUBLICACIÓN]],\"\")","v":{"v":479,"d":"479 Días"}}]
[null,"ARTÍCULO0003","escáner","Empleado 3",{"$f":"TODAY()-177","v":"2012-05-28"},{"$f":"IF(tblInventarioEquipamiento[[#This Row],[FECHA DE PUBLICACIÓN]]<>\"\",TODAY()-tblInventarioEquipamiento[[#This Row],[FECHA DE PUBLICACIÓN]],\"\")","v":{"v":177,"d":"177 Días"}}]
[null,"ARTÍCULO0004","impresora láser","Empleado 7",{"$f":"TODAY()-18","v":"2012-11-03"},{"$f":"IF(tblInventarioEquipamiento[[#This Row],[FECHA DE PUBLICACIÓN]]<>\"\",TODAY()-tblInventarioEquipamiento[[#This Row],[FECHA DE PUBLICACIÓN]],\"\")","v":{"v":18,"d":"18 Días"}}]
[null,"ARTÍCULO0005","cafetera","Empleado 20",{"$f":"TODAY()-227","v":"2012-04-08"},{"$f":"IF(tblInventarioEquipamiento[[#This Row],[FECHA DE PUBLICACIÓN]]<>\"\",TODAY()-tblInventarioEquipamiento[[#This Row],[FECHA DE PUBLICACIÓN]],\"\")","v":{"v":227,"d":"227 Días"}}]
[null,"ARTÍCULO0006","escáner","Empleado 14",{"$f":"TODAY()-50","v":"2012-10-02"},{"$f":"IF(tblInventarioEquipamiento[[#This Row],[FECHA DE PUBLICACIÓN]]<>\"\",TODAY()-tblInventarioEquipamiento[[#This Row],[FECHA DE PUBLICACIÓN]],\"\")","v":{"v":50,"d":"50 Días"}}]
[null,"ARTÍCULO0007","mesa","Empleado 4",{"$f":"TODAY()-120","v":"2012-07-24"},{"$f":"IF(tblInventarioEquipamiento[[#This Row],[FECHA DE PUBLICACIÓN]]<>\"\",TODAY()-tblInventarioEquipamiento[[#This Row],[FECHA DE PUBLICACIÓN]],\"\")","v":{"v":120,"d":"120 Días"}}]
[null,"ARTÍCULO0008","fotocopiadora","Empleado 12",{"$f":"TODAY()-499","v":"2011-07-11"},{"$f":"IF(tblInventarioEquipamiento[[#This Row],[FECHA DE PUBLICACIÓN]]<>\"\",TODAY()-tblInventarioEquipamiento[[#This Row],[FECHA DE PUBLICACIÓN]],\"\")","v":{"v":499,"d":"499 Días"}}]
[null,"ARTÍCULO0009","monitor adicional","Empleado 8",{"$f":"TODAY()-30","v":"2012-10-22"},{"$f":"IF(tblInventarioEquipamiento[[#This Row],[FECHA DE PUBLICACIÓN]]<>\"\",TODAY()-tblInventarioEquipamiento[[#This Row],[FECHA DE PUBLICACIÓN]],\"\")","v":{"v":30,"d":"30 Días"}}]
[null,"ARTÍCULO0010","pizarra","Empleado 19",{"$f":"TODAY()-50","v":"2012-10-02"},{"$f":"IF(tblInventarioEquipamiento[[#This Row],[FECHA DE PUBLICACIÓN]]<>\"\",TODAY()-tblInventarioEquipamiento[[#This Row],[FECHA DE PUBLICACIÓN]],\"\")","v":{"v":50,"d":"50 Días"}}]
[null,"ARTÍCULO0011","fotocopiadora","Empleado 12",{"$f":"TODAY()-450","v":"2011-08-29"},{"$f":"IF(tblInventarioEquipamiento[[#This Row],[FECHA DE PUBLICACIÓN]]<>\"\",TODAY()-tblInventarioEquipamiento[[#This Row],[FECHA DE PUBLICACIÓN]],\"\")","v":{"v":450,"d":"450 Días"}}]
[null,"ARTÍCULO0012","material de oficina","Empleado 18",{"$f":"TODAY()-420","v":"2011-09-28"},{"$f":"IF(tblInventarioEquipamiento[[#This Row],[FECHA DE PUBLICACIÓN]]<>\"\",TODAY()-tblInventarioEquipamiento[[#This Row],[FECHA DE PUBLICACIÓN]],\"\")","v":{"v":420,"d":"420 Días"}}]
[null,"ARTÍCULO0013","monitor adicional","Empleado 8",{"$f":"TODAY()-250","v":"2012-03-16"},{"$f":"IF(tblInventarioEquipamiento[[#This Row],[FECHA DE PUBLICACIÓN]]<>\"\",TODAY()-tblInventarioEquipamiento[[#This Row],[FECHA DE PUBLICACIÓN]],\"\")","v":{"v":250,"d":"250 Días"}}]
[null,"ARTÍCULO0014","cafetera","Empleado 9",{"$f":"TODAY()-45","v":"2012-10-07"},{"$f":"IF(tblInventarioEquipamiento[[#This Row],[FECHA DE PUBLICACIÓN]]<>\"\",TODAY()-tblInventarioEquipamiento[[#This Row],[FECHA DE PUBLICACIÓN]],\"\")","v":{"v":45,"d":"45 Días"}}]
[null,"ARTÍCULO0015","material de oficina","Empleado 13",{"$f":"TODAY()-502","v":"2011-07-08"},{"$f":"IF(tblInventarioEquipamiento[[#This Row],[FECHA DE PUBLICACIÓN]]<>\"\",TODAY()-tblInventarioEquipamiento[[#This Row],[FECHA DE PUBLICACIÓN]],\"\")","v":{"v":502,"d":"502 Días"}}]
[null,"ARTÍCULO0016","escáner","Empleado 1",{"$f":"TODAY()-350","v":"2011-12-07"},{"$f":"IF(tblInventarioEquipamiento[[#This Row],[FECHA DE PUBLICACIÓN]]<>\"\",TODAY()-tblInventarioEquipamiento[[#This Row],[FECHA DE PUBLICACIÓN]],\"\")","v":{"v":350,"d":"350 Días"}}]
[null,"ARTÍCULO0017","fotocopiadora","Empleado 19",{"$f":"TODAY()-125","v":"2012-07-19"},{"$f":"IF(tblInventarioEquipamiento[[#This Row],[FECHA DE PUBLICACIÓN]]<>\"\",TODAY()-tblInventarioEquipamiento[[#This Row],[FECHA DE PUBLICACIÓN]],\"\")","v":{"v":125,"d":"125 Días"}}]
[null,"ARTÍCULO0018","pizarra","Empleado 15",{"$f":"TODAY()-90","v":"2012-08-23"},{"$f":"IF(tblInventarioEquipamiento[[#This Row],[FECHA DE PUBLICACIÓN]]<>\"\",TODAY()-tblInventarioEquipamiento[[#This Row],[FECHA DE PUBLICACIÓN]],\"\")","v":{"v":90,"d":"90 Días"}}]
[null,"ARTÍCULO0019","silla","Empleado 16",{"$f":"TODAY()-730","v":"2010-11-22"},{"$f":"IF(tblInventarioEquipamiento[[#This Row],[FECHA DE PUBLICACIÓN]]<>\"\",TODAY()-tblInventarioEquipamiento[[#This Row],[FECHA DE PUBLICACIÓN]],\"\")","v":{"v":730,"d":"730 Días"}}]
[null,"ARTÍCULO0020","trapo para el polvo (1 paquete)","Empleado 3",{"$f":"TODAY()-540","v":"2011-05-31"},{"$f":"IF(tblInventarioEquipamiento[[#This Row],[FECHA DE PUBLICACIÓN]]<>\"\",TODAY()-tblInventarioEquipamiento[[#This Row],[FECHA DE PUBLICACIÓN]],\"\")","v":{"v":540,"d":"540 Días"}}]
[null,"ARTÍCULO0021","impresora láser","Empleado 7",{"$f":"TODAY()-18","v":"2012-11-03"},{"$f":"IF(tblInventarioEquipamiento[[#This Row],[FECHA DE PUBLICACIÓN]]<>\"\",TODAY()-tblInventarioEquipamiento[[#This Row],[FECHA DE PUBLICACIÓN]],\"\")","v":{"v":18,"d":"18 Días"}}]
[null,"ARTÍCULO0022","ordenador portátil","Empleado 8",{"$f":"TODAY()-283","v":"2012-02-12"},{"$f":"IF(tblInventarioEquipamiento[[#This Row],[FECHA DE PUBLICACIÓN]]<>\"\",TODAY()-tblInventarioEquipamiento[[#This Row],[FECHA DE PUBLICACIÓN]],\"\")","v":{"v":283,"d":"283 Días"}}]
[null,"ARTÍCULO0023","material de oficina","Empleado 9",{"$f":"TODAY()-479","v":"2011-07-31"},{"$f":"IF(tblInventarioEquipamiento[[#This Row],[FECHA DE PUBLICACIÓN]]<>\"\",TODAY()-tblInventarioEquipamiento[[#This Row],[FECHA DE PUBLICACIÓN]],\"\")","v":{"v":479,"d":"479 Días"}}]
[null,"ARTÍCULO0024","impresora láser","Empleado 19",{"$f":"TODAY()-355","v":"2011-12-02"},{"$f":"IF(tblInventarioEquipamiento[[#This Row],[FECHA DE PUBLICACIÓN]]<>\"\",TODAY()-tblInventarioEquipamiento[[#This Row],[FECHA DE PUBLICACIÓN]],\"\")","v":{"v":355,"d":"355 Días"}}]
[null,"ARTÍCULO0025","mesa","Empleado 7",{"$f":"TODAY()-28","v":"2012-10-24"},{"$f":"IF(tblInventarioEquipamiento[[#This Row],[FECHA DE PUBLICACIÓN]]<>\"\",TODAY()-tblInventarioEquipamiento[[#This Row],[FECHA DE PUBLICACIÓN]],\"\")","v":{"v":28,"d":"28 Días"}}]
[null,"ARTÍCULO0026","pizarra","Empleado 8",{"$f":"TODAY()-28","v":"2012-10-24"},{"$f":"IF(tblInventarioEquipamiento[[#This Row],[FECHA DE PUBLICACIÓN]]<>\"\",TODAY()-tblInventarioEquipamiento[[#This Row],[FECHA DE PUBLICACIÓN]],\"\")","v":{"v":28,"d":"28 Días"}}]
[null,"ARTÍCULO0027","ordenador portátil","Empleado 19",{"$f":"TODAY()-736","v":"2010-11-16"},{"$f":"IF(tblInventarioEquipamiento[[#This Row],[FECHA DE PUBLICACIÓN]]<>\"\",TODAY()-tblInventarioEquipamiento[[#This Row],[FECHA DE PUBLICACIÓN]],\"\")","v":{"v":736,"d":"736 Días"}}]
[null,"ARTÍCULO0028","mesa","Empleado 12",{"$f":"TODAY()-68","v":"2012-09-14"},{"$f":"IF(tblInventarioEquipamiento[[#This Row],[FECHA DE PUBLICACIÓN]]<>\"\",TODAY()-tblInventarioEquipamiento[[#This Row],[FECHA DE PUBLICACIÓN]],\"\")","v":{"v":68,"d":"68 Días"}}]
[null,"ARTÍCULO0029","escáner","Empleado 14",{"$f":"TODAY()-67","v":"2012-09-15"},{"$f":"IF(tblInventarioEquipamiento[[#This Row],[FECHA DE PUBLICACIÓN]]<>\"\",TODAY()-tblInventarioEquipamiento[[#This Row],[FECHA DE PUBLICACIÓN]],\"\")","v":{"v":67,"d":"67 Días"}}]
[null,"ARTÍCULO0030","cafetera","Empleado 3",{"$f":"TODAY()-149","v":"2012-06-25"},{"$f":"IF(tblInventarioEquipamiento[[#This Row],[FECHA DE PUBLICACIÓN]]<>\"\",TODAY()-tblInventarioEquipamiento[[#This Row],[FECHA DE PUBLICACIÓN]],\"\")","v":{"v":149,"d":"149 Días"}}]

{"sheet":"Configuración","index":1,"n_rows":23,"n_cols":4,"rows_kept":23}
[]
[]
[null,"EMPLEADOS",null,"ARTÍCULOS"]
[null,"Empleado 1",null,"silla"]
[null,"Empleado 2",null,"cafetera"]
[null,"Empleado 3",null,"fotocopiadora"]
[null,"Empleado 4",null,"ordenador de mesa"]
[null,"Empleado 5",null,"trapo para el polvo (1 paquete)"]
[null,"Empleado 6",null,"monitor adicional"]
[null,"Empleado 7",null,"impresora de chorro de tinta"]
[null,"Empleado 8",null,"ordenador portátil"]
[null,"Empleado 9",null,"impresora láser"]
[null,"Empleado 10",null,"rotuladores (3 paquetes)"]
[null,"Empleado 11",null,"escáner"]
[null,"Empleado 12",null,"material de oficina"]
[null,"Empleado 13",null,"mesa"]
[null,"Empleado 14",null,"dispositivo USB"]
[null,"Empleado 15",null,"pizarra"]
[null,"Empleado 16"]
[null,"Empleado 17"]
[null,"Empleado 18"]
[null,"Empleado 19"]
[null,"Empleado 20"]